bitfinex/quotes_BTCUSD_20251114
["timestamp","ask_amount","ask_price","bid_price","bid_amount"]
[1763119032092,0.8068599,96753.0,96752.0,1e-08]
[1763119032690,0.70319052,96753.0,96752.0,1e-08]
[1763119032895,0.22789076,96753.0,96752.0,1e-08]
[1763119033098,0.20871193,96753.0,96752.0,1e-08]
[1763119033297,0.45321193,96753.0,96752.0,1e-08]
[1763119033880,0.77621193,96753.0,96752.0,1e-08]
[1763119034499,0.87888131,96753.0,96752.0,1e-08]
[1763119034891,0.81763067,96753.0,96752.0,1e-08]
[1763119035098,0.83674792,96753.0,96752.0,1e-08]
[1763119035961,0.83774792,96753.0,96752.0,1e-08]
[1763119036286,0.79332918,96753.0,96752.0,1e-08]
[1763119036488,0.77421193,96753.0,96752.0,1e-08]
[1763119036740,0.79432965,96753.0,96752.0,1e-08]
[1763119037166,0.77621193,96753.0,96752.0,1e-08]
[1763119037493,0.79433232,96753.0,96752.0,1e-08]
[1763119037626,0.79533232,96753.0,96752.0,1e-08]
[1763119039342,0.20871193,96753.0,96752.0,1e-08]
[1763119039716,0.002,96753.0,96752.0,1e-08]
[1763119040088,0.001,96753.0,96752.0,1e-08]
[1763119040271,0.324,96753.0,96752.0,1e-08]
[1763119040684,0.40672254,96753.0,96752.0,1e-08]
[1763119040890,0.44914128,96753.0,96752.0,1e-08]
[1763119041325,0.47118583,96753.0,96752.0,1e-08]
[1763119042007,0.47218583,96753.0,96752.0,1e-08]
[1763119042709,0.47118583,96753.0,96752.0,1e-08]
[1763119043376,0.49983549,96753.0,96752.0,1e-08]
[1763119043606,0.74333549,96753.0,96752.0,1e-08]
[1763119044035,0.71668583,96753.0,96752.0,1e-08]
[1763119044758,0.71568583,96753.0,96752.0,1e-08]
[1763119045138,0.7272582,96753.0,96752.0,1e-08]
[1763119046406,0.7262582,96753.0,96752.0,1e-08]
[1763119046645,0.7272582,96753.0,96752.0,1e-08]
[1763119047376,0.75830081,96753.0,96752.0,1e-08]
[1763119049655,0.81355935,96753.0,96752.0,1e-08]
[1763119050493,0.75830081,96753.0,96752.0,1e-08]
[1763119051596,0.75730081,96753.0,96752.0,1e-08]
[1763119051771,0.75830081,96753.0,96752.0,1e-08]
[1763119052423,0.75730081,96753.0,96752.0,1e-08]
[1763119052805,0.75830081,96753.0,96752.0,1e-08]
[1763119053010,0.37171528,96753.0,96752.0,1e-08]
[1763119053212,0.38982218,96753.0,96752.0,1e-08]
[1763119053408,0.68514291,96753.0,96752.0,1e-08]
[1763119053894,0.64172417,96753.0,96752.0,1e-08]
[1763119054105,0.6541003,96753.0,96752.0,1e-08]
[1763119054322,0.20676108,96730.0,96705.0,0.02291]
[1763119054522,0.20676108,96730.0,96729.0,0.0501359]
[1763119054523,0.81544263,96730.0,96729.0,0.0501359]
[1763119055173,0.81553403,96730.0,96729.0,0.0501359]
[1763119055400,0.81553403,96730.0,96704.0,0.01163]
[1763119055401,0.81553403,96730.0,96680.0,0.0004]
[1763119055402,0.20686587,96681.0,96680.0,0.0004]
[1763119055631,0.57269561,96681.0,96680.0,0.00085306]
[1763119055862,0.57122966,96681.0,96680.0,0.00085306]
[1763119056083,0.54908651,96681.0,96680.0,0.00085306]
[1763119056295,0.57123067,96681.0,96680.0,0.00085306]
[1763119056516,0.64203243,96681.0,96680.0,0.00085306]
[1763119056724,0.64303243,96681.0,96680.0,0.00085306]
[1763119056930,0.64203243,96681.0,96680.0,0.00085306]
[1763119057141,0.323,96680.0,96679.0,1e-08]
[1763119057371,0.38609531,96680.0,96679.0,1e-08]
[1763119057766,0.38609531,96680.0,96670.0,0.0004]
[1763119057767,0.52988727,96671.0,96670.0,0.0004]
[1763119058024,0.54910791,96671.0,96660.0,0.0004]
[1763119058234,0.54910791,96671.0,96629.0,0.12412]
[1763119058235,0.59298625,96680.0,96635.0,0.10183647]
[1763119058236,0.323,96660.0,96635.0,0.10183647]
[1763119058438,0.5299608,96637.0,96636.0,0.03454]
[1763119059060,0.5299608,96637.0,96636.0,0.01163]
[1763119059270,0.323,96637.0,96636.0,0.01163]
[1763119059507,0.20694496,96645.0,96636.0,0.01163]
[1763119059508,0.01807447,96670.0,96645.0,0.02758]
[1763119059752,0.21769195,96670.0,96669.0,0.02758]
[1763119059959,0.54069195,96670.0,96669.0,0.02758]
[1763119060429,0.54069195,96670.0,96669.0,0.02981033]
[1763119060430,0.53034748,96670.0,96669.0,0.02981033]
[1763119060647,0.00045593,96670.0,96669.0,0.01386033]
[1763119063246,0.00045593,96670.0,96669.0,0.13902033]
[1763119063449,0.00045593,96670.0,96669.0,0.13802033]
[1763119063867,0.00045593,96670.0,96669.0,0.34591188]
[1763119064114,0.00045593,96670.0,96669.0,0.13902033]
[1763119064699,0.00045593,96670.0,96669.0,0.14002033]
[1763119064900,0.00045593,96670.0,96669.0,0.13902033]
[1763119065111,0.00045593,96670.0,96669.0,0.13802033]
[1763119065303,0.00045593,96670.0,96669.0,0.13902033]
[1763119065510,0.00045593,96670.0,96669.0,0.01586033]
[1763119065708,0.00045593,96670.0,96669.0,0.14002033]
[1763119066410,0.00045593,96670.0,96669.0,0.01586033]
[1763119066755,0.00045593,96670.0,96669.0,0.01486033]
[1763119067089,0.00045593,96670.0,96669.0,0.01586033]
[1763119068282,0.00045593,96670.0,96669.0,0.14002033]
[1763119070135,0.00045593,96670.0,96669.0,0.18343907]
[1763119070774,0.00045593,96670.0,96669.0,0.51675657]
[1763119071307,0.00045593,96670.0,96669.0,0.39259657]
[1763119071507,0.00045593,96670.0,96669.0,0.39059657]
[1763119071916,0.00045593,96670.0,96669.0,0.51575657]
[1763119072115,0.00045593,96670.0,96669.0,0.51475657]
[1763119072320,0.00045593,96670.0,96669.0,0.01386033]
[1763119072543,0.00045593,96670.0,96669.0,0.13902033]
[1763119072741,0.00045593,96670.0,96669.0,0.34591188]
[1763119072919,0.00045593,96670.0,96669.0,0.22175188]
[1763119073316,0.00045593,96670.0,96669.0,0.22075188]
[1763119073545,0.00045593,96670.0,96669.0,0.13802033]
[1763119073763,0.00045593,96670.0,96669.0,0.13902033]
[1763119073915,0.00045593,96670.0,96669.0,0.34591188]
[1763119074132,0.00045593,96670.0,96669.0,0.01386033]
[1763119074560,0.00045593,96670.0,96669.0,0.22075188]
[1763119075828,0.00045593,96670.0,96669.0,0.01386033]
[1763119076010,0.20734534,96670.0,96669.0,0.01386033]
[1763119077075,0.20734534,96670.0,96669.0,0.03677033]
[1763119077486,0.20734534,96670.0,96669.0,0.01486033]
[1763119077934,0.20734534,96670.0,96669.0,0.01386033]
[1763119078173,0.00045593,96670.0,96669.0,0.01386033]
[1763119078481,0.20734534,96670.0,96669.0,0.01386033]
[1763119080428,0.00045593,96670.0,96669.0,0.01386033]
[1763119080638,0.00045593,96670.0,96669.0,0.22075188]
[1763119080845,0.00818,96723.0,96680.0,0.0103434]
[1763119081020,0.29974335,96714.0,96709.0,0.02763]
[1763119081222,0.20680384,96710.0,96709.0,0.01350499]
[1763119082051,0.20680384,96710.0,96709.0,0.00115499]
[1763119082255,0.21498384,96710.0,96709.0,0.00115499]
[1763119082685,0.21598384,96710.0,96709.0,0.00115499]
[1763119083731,0.20780384,96710.0,96709.0,0.00115499]
[1763119083938,0.20880384,96710.0,96709.0,0.00115499]
[1763119084157,0.21698384,96710.0,96709.0,0.00115499]
[1763119086390,0.20880384,96710.0,96709.0,0.00115499]
[1763119086598,0.21698384,96710.0,96709.0,0.00115499]
[1763119086828,0.20880384,96710.0,96709.0,0.00115499]
[1763119087421,0.20880384,96710.0,96709.0,0.00110699]
[1763119089921,0.20880384,96710.0,96709.0,0.02509699]
[1763119090815,0.20880384,96710.0,96709.0,0.00110699]
[1763119091949,0.53180384,96710.0,96709.0,0.00110699]
[1763119092614,0.002,96710.0,96709.0,0.00110699]
[1763119092836,0.002,96710.0,96709.0,0.20791297]
[1763119093042,0.20880384,96710.0,96709.0,0.00110699]
[1763119093454,0.20780384,96710.0,96709.0,0.00110699]
[1763119093656,0.20680384,96710.0,96709.0,0.00110699]
[1763119094082,0.20780384,96710.0,96709.0,0.00110699]
[1763119094290,0.20880384,96710.0,96709.0,0.00110699]
[1763119096032,0.20780384,96710.0,96709.0,0.00110699]
[1763119096241,0.20880384,96710.0,96709.0,0.00110699]
[1763119096452,0.53998384,96710.0,96709.0,0.00110699]
[1763119096857,0.53180384,96710.0,96709.0,0.00110699]
[1763119098171,0.53998384,96710.0,96709.0,0.00110699]
[1763119098540,0.53898384,96710.0,96709.0,0.00110699]
[1763119098746,0.59181818,96710.0,96709.0,0.00110699]
[1763119099393,0.323,96690.0,96681.0,0.01244]
[1763119099588,0.08515141,96710.0,96681.0,0.01244]
[1763119099589,0.29980965,96682.0,96681.0,0.01244]
[1763119100005,0.20686373,96682.0,96681.0,0.01244]
[1763119101047,0.52984448,96691.0,96690.0,0.03453]
[1763119101670,0.00818,96704.0,96681.0,0.01244]
[1763119101671,0.2068618,96683.0,96681.0,0.01244]
[1763119101878,0.20686373,96682.0,96681.0,0.01244]
[1763119102321,0.52986373,96682.0,96681.0,0.01244]
[1763119102533,0.2068618,96683.0,96681.0,0.01244]
[1763119102952,0.20686215,96683.0,96681.0,0.01244]
[1763119103183,0.20686215,96683.0,96682.0,0.02399]
[1763119104614,0.20686215,96683.0,96681.0,0.01244]
[1763119104825,0.323,96682.0,96681.0,0.01244]
[1763119105241,0.323,96682.0,96681.0,0.01319247]
[1763119109540,0.52986373,96682.0,96681.0,0.01319247]
[1763119109943,0.53804373,96682.0,96681.0,0.00075247]
[1763119110144,0.56635411,96682.0,96681.0,0.00075247]
[1763119110395,0.53804373,96682.0,96681.0,0.00075247]
[1763119111756,0.53904373,96682.0,96681.0,0.00075247]
[1763119112147,0.54004373,96682.0,96681.0,0.00075247]
[1763119113444,0.54004373,96682.0,96680.0,6.589e-05]
[1763119113641,0.00818,96681.0,96680.0,6.589e-05]
[1763119113843,0.43484938,96681.0,96680.0,6.589e-05]
[1763119114041,0.47826812,96681.0,96680.0,6.589e-05]
[1763119114273,0.57330173,96673.0,96672.0,0.00024193]
[1763119114486,0.58161841,96673.0,96672.0,0.00024193]
[1763119115249,0.52994293,96645.0,96644.0,0.01162]
[1763119115366,0.52994293,96645.0,96640.0,0.018]
[1763119115367,0.52994935,96642.0,96640.0,0.018]
[1763119115568,0.62289742,96641.0,96640.0,0.018]
[1763119115768,0.2069622,96636.0,96634.0,0.01162]
[1763119116616,0.2070988,96636.0,96634.0,0.01162]
[1763119118134,0.5300988,96636.0,96634.0,0.01162]
[1763119118372,0.5300988,96636.0,96614.0,9e-05]
[1763119118373,0.61394783,96636.0,96617.0,0.01162]
[1763119118576,0.61394783,96636.0,96630.0,0.018]
[1763119118711,0.61394783,96636.0,96614.0,9e-05]
[1763119118712,0.40698563,96636.0,96614.0,9e-05]
[1763119118915,0.53000719,96615.0,96614.0,9e-05]
[1763119119880,0.62295311,96615.0,96614.0,9e-05]
[1763119120104,0.63113311,96615.0,96614.0,9e-05]
[1763119120219,0.63113311,96615.0,96610.0,0.0184]
[1763119120220,0.53001576,96611.0,96610.0,0.0004]
[1763119120426,0.53001576,96611.0,96585.0,0.12923554]
[1763119120427,0.323,96586.0,96585.0,0.12923554]
[1763119120630,0.01035089,96610.0,96585.0,0.12923554]
[1763119120631,0.39281844,96610.0,96585.0,0.12923554]
[1763119120874,0.01556,96611.0,96585.0,0.12923554]
[1763119120875,0.01556,96611.0,96609.0,0.02793]
[1763119120876,0.323,96611.0,96609.0,0.02793]
[1763119121093,0.323,96611.0,96610.0,0.01631]
[1763119121293,0.323,96611.0,96610.0,0.018]
[1763119121505,0.323,96610.0,96594.0,0.01162]
[1763119121725,0.53003719,96601.0,96600.0,0.018]
[1763119123083,0.20705648,96592.0,96591.0,0.01162]
[1763119123251,0.20705862,96591.0,96590.0,0.018]
[1763119123485,0.20704975,96596.0,96594.0,0.01631]
[1763119123632,0.323,96597.0,96596.0,0.01631]
[1763119123824,0.323,96597.0,96586.0,0.02397]
[1763119124031,0.2070672,96587.0,96586.0,0.02397]
[1763119124446,0.2070672,96587.0,96585.0,0.12923554]
[1763119124447,0.09294592,96594.0,96585.0,0.12923554]
[1763119124653,0.02034981,96620.0,96585.0,0.12923554]
[1763119124654,0.29999383,96596.0,96594.0,0.02793]
[1763119124860,0.20705005,96595.0,96594.0,0.02793]
[1763119125060,0.20705005,96595.0,96594.0,0.01162]
[1763119125061,0.53005005,96595.0,96594.0,0.01162]
[1763119125471,0.53005862,96591.0,96590.0,0.018]
[1763119126292,0.53005862,96591.0,96585.0,0.12923554]
[1763119126293,0.53006934,96586.0,96585.0,0.12923554]
[1763119126544,0.53784934,96586.0,96585.0,0.12923554]
[1763119126749,0.53006934,96586.0,96585.0,0.13157635]
[1763119127331,0.53784934,96586.0,96585.0,0.13157635]
[1763119127536,0.53784934,96586.0,96585.0,0.05947641]
[1763119127537,0.53884934,96586.0,96585.0,0.05947641]
[1763119127742,0.53884934,96586.0,96530.0,0.2]
[1763119127743,0.53016801,96540.0,96526.0,0.02397]
[1763119127913,0.53016801,96540.0,96520.0,0.12424]
[1763119127914,0.01035518,96570.0,96540.0,0.02397]
[1763119128216,0.53012081,96562.0,96561.0,0.01162]
[1763119128686,0.53012081,96562.0,96548.0,0.01162]
[1763119128687,0.323,96562.0,96548.0,0.01162]
[1763119128889,0.20714684,96550.0,96549.0,0.02397]
[1763119129306,0.20714684,96550.0,96537.0,0.20717427]
[1763119129307,0.323,96540.0,96530.0,0.018]
[1763119129522,0.53017659,96536.0,96535.0,0.01162]
[1763119129914,0.323,96535.0,96530.0,0.018]
[1763119131080,0.20717659,96536.0,96530.0,0.018]
[1763119131282,0.20717659,96536.0,96505.0,0.20724116]
[1763119131283,0.00778,96535.0,96520.0,0.018]
[1763119131481,0.00778,96535.0,96510.0,0.018]
[1763119131482,0.11891874,96535.0,96510.0,0.018]
[1763119132727,0.05119874,96535.0,96534.0,0.13416116]
[1763119132887,0.05119874,96535.0,96534.0,0.13316116]
[1763119133293,0.05119874,96535.0,96500.0,10.112223]
[1763119133294,0.53022382,96514.0,96500.0,10.112223]
[1763119133554,0.53022382,96514.0,96500.0,10.130223]
[1763119133760,0.53022382,96514.0,96500.0,10.112223]
[1763119133761,0.60616916,96514.0,96500.0,10.112223]
[1763119134170,0.60616916,96514.0,96513.0,0.00083589]
[1763119134385,0.53036014,96514.0,96513.0,0.00083589]
[1763119135004,0.32313632,96514.0,96513.0,0.00083589]
[1763119135789,0.41708224,96514.0,96513.0,0.00083589]
[1763119135985,0.41608224,96514.0,96513.0,0.00083589]
[1763119136373,0.41704224,96514.0,96513.0,0.00083589]
[1763119137000,0.41804224,96514.0,96513.0,0.00083589]
[1763119138019,0.32509632,96514.0,96513.0,0.00083589]
[1763119138219,0.00213632,96514.0,96513.0,0.00083589]
[1763119138421,0.00213632,96514.0,96513.0,0.04236666]
[1763119138946,0.00113632,96514.0,96513.0,0.04236666]
[1763119139082,0.00013632,96514.0,96513.0,0.04236666]
[1763119139284,0.00013632,96514.0,96513.0,0.00083589]
[1763119140100,0.00013632,96514.0,96513.0,0.00183589]
[1763119140101,0.20736014,96514.0,96513.0,0.00183589]
[1763119140297,0.00013632,96514.0,96513.0,0.00183589]
[1763119141601,0.00013632,96514.0,96513.0,0.36825463]
[1763119142007,0.00013632,96514.0,96513.0,1.00867563]
[1763119142209,0.00013632,96514.0,96513.0,0.88899963]
[1763119142423,0.00013632,96514.0,96513.0,0.85029763]
[1763119142628,0.00013632,96514.0,96513.0,0.84929763]
[1763119142831,0.00013632,96514.0,96513.0,0.84829763]
[1763119143005,0.00013632,96514.0,96513.0,0.85029763]
[1763119143210,0.05132667,96657.0,96513.0,0.85029763]
[1763119143211,0.00778,96582.0,96563.0,0.20711795]
[1763119143420,0.30004099,96574.0,96570.0,0.02992]
[1763119143627,0.00013693,96575.0,96570.0,0.02992]
[1763119143830,0.00013693,96575.0,96574.0,0.02793]
[1763119144037,0.00013693,96575.0,96574.0,0.01192]
[1763119145249,0.00113693,96575.0,96574.0,0.01192]
[1763119145873,0.00013693,96575.0,96574.0,0.01192]
[1763119147487,0.20722986,96575.0,96574.0,0.01192]
[1763119148275,0.00013693,96575.0,96574.0,0.01192]
[1763119148642,0.20722986,96575.0,96574.0,0.01192]
[1763119148837,0.20722986,96575.0,96574.0,0.03501444]
[1763119149060,0.20722986,96575.0,96574.0,0.01192]
[1763119153478,0.20722986,96575.0,96554.0,0.09294592]
[1763119153479,0.20714011,96553.0,96525.0,0.01205]
[1763119153685,0.20714226,96552.0,96550.0,0.018]
[1763119156229,0.323,96551.0,96550.0,0.018]
[1763119156618,0.323,96551.0,96535.0,0.00024307]
[1763119156619,0.33078,96551.0,96540.0,0.018]
[1763119156770,0.62311178,96541.0,96540.0,0.018]
[1763119157782,0.53017659,96536.0,96535.0,0.00024307]
[1763119158046,0.53017659,96536.0,96535.0,0.000699]
[1763119158958,0.53117659,96536.0,96535.0,0.000699]
[1763119159087,0.53995659,96536.0,96535.0,0.000699]
[1763119161553,0.53795659,96536.0,96535.0,0.000699]
[1763119161777,0.55802798,96536.0,96535.0,0.000699]
[1763119161979,0.55902798,96536.0,96535.0,0.000699]
[1763119162110,0.53995659,96536.0,96535.0,0.000699]
[1763119162524,0.59786713,96536.0,96535.0,0.000699]
[1763119162727,0.61694,96536.0,96535.0,0.000699]
[1763119163589,0.61694,96536.0,96504.0,0.01205]
[1763119163590,0.323,96523.0,96504.0,0.01205]
[1763119163739,0.30018906,96505.0,96504.0,0.01205]
[1763119163953,0.20724314,96505.0,96504.0,0.01205]
[1763119165144,0.30118906,96505.0,96504.0,0.01205]
[1763119165277,0.30018906,96505.0,96504.0,0.01205]
[1763119166077,0.20725173,96501.0,96500.0,10.130223]
[1763119166309,0.53025173,96501.0,96500.0,10.130223]
[1763119166532,0.53025173,96501.0,96500.0,10.112223]
[1763119166867,0.53803173,96501.0,96500.0,10.112223]
[1763119167068,0.64170111,96501.0,96500.0,10.112223]
[1763119167248,0.64270111,96501.0,96500.0,10.112223]
[1763119167652,0.53025173,96501.0,96500.0,10.112223]
[1763119167856,0.53803173,96501.0,96500.0,10.112223]
[1763119168214,0.53025173,96501.0,96500.0,10.112223]
[1763119168629,0.53125173,96501.0,96500.0,10.112223]
[1763119169033,0.001,96501.0,96500.0,10.112223]
[1763119169235,0.20723551,96509.0,96504.0,0.00083537]
[1763119169442,0.20723885,96507.0,96500.0,10.112223]
[1763119169574,0.323,96508.0,96501.0,0.02401]
[1763119169776,0.09294592,96505.0,96501.0,0.02401]
[1763119169979,0.20724831,96503.0,96501.0,0.02401]
[1763119170178,0.20725173,96501.0,96500.0,10.130223]
[1763119170380,0.53025173,96501.0,96500.0,10.112223]
[1763119171100,0.58174599,96501.0,96500.0,10.112223]
[1763119171874,0.58274599,96501.0,96500.0,10.112223]
[1763119172213,0.58174599,96501.0,96500.0,10.112223]
[1763119172417,0.53803173,96501.0,96500.0,10.112223]
[1763119172619,0.53903173,96501.0,96500.0,10.112223]
[1763119173104,0.54003173,96501.0,96500.0,10.112223]
[1763119173316,0.58345047,96501.0,96500.0,9.31083668]
[1763119173517,0.70613924,96501.0,96500.0,8.58101752]
[1763119173769,0.70613924,96501.0,96500.0,8.27969616]
[1763119173941,0.78569122,96501.0,96500.0,8.24858221]
[1763119174149,0.78469351,96501.0,96500.0,8.21746826]
[1763119174361,0.78369351,96501.0,96500.0,8.18635431]
[1763119174519,0.78369351,96501.0,96500.0,8.15524036]
[1763119174690,0.78469351,96501.0,96500.0,8.09051382]
[1763119174889,0.78469351,96501.0,96500.0,8.05939987]
[1763119175133,0.78469351,96501.0,96500.0,8.02828592]
[1763119175134,0.78569351,96501.0,96500.0,8.02828592]
[1763119175334,0.78569351,96501.0,96500.0,6.47260475]
[1763119175335,0.68202413,96501.0,96500.0,6.47260475]
[1763119175711,0.60247215,96501.0,96500.0,6.47260475]
[1763119175920,0.60247215,96501.0,96500.0,6.47354795]
[1763119176322,0.55127341,96501.0,96500.0,6.47354795]
[1763119176524,0.58345047,96501.0,96500.0,6.47354795]
[1763119177732,0.6024587,96501.0,96500.0,6.47354795]
[1763119177932,0.58345047,96501.0,96500.0,6.47354795]
[1763119178359,0.60246241,96501.0,96500.0,6.47354795]
[1763119178575,0.58345047,96501.0,96500.0,6.47354795]
[1763119178849,0.60246233,96501.0,96500.0,6.47354795]
[1763119179009,0.70613171,96501.0,96500.0,6.47354795]
[1763119180405,0.60246233,96501.0,96500.0,6.47354795]
[1763119181005,0.53225173,96501.0,96500.0,6.47354795]
[1763119181207,0.20925173,96501.0,96500.0,6.49154795]
[1763119181628,0.20925173,96501.0,96500.0,6.47354795]
[1763119182141,0.53225173,96501.0,96500.0,6.47354795]
[1763119182987,0.53025173,96501.0,96500.0,6.47354795]
[1763119183186,0.64170111,96501.0,96500.0,6.47354795]
[1763119183384,0.66077018,96501.0,96500.0,6.47354795]
[1763119183585,0.5493208,96501.0,96500.0,6.47354795]
[1763119183765,0.53025173,96501.0,96500.0,6.47354795]
[1763119184392,0.53025173,96501.0,96500.0,6.49154795]
[1763119184542,0.53025173,96501.0,96500.0,6.47354795]
[1763119185690,0.323,96501.0,96500.0,6.47354795]
[1763119185893,0.323,96501.0,96500.0,6.49154795]
[1763119186102,0.05791054,96536.0,96509.0,0.01603]
[1763119186280,0.20723153,96511.0,96510.0,0.018]
[1763119186704,0.53023153,96511.0,96510.0,0.018]
[1763119186908,0.20723153,96511.0,96510.0,0.01867364]
[1763119187170,0.20723153,96511.0,96510.0,0.00067364]
[1763119187753,0.31047987,96511.0,96510.0,0.00067364]
[1763119187892,0.32959401,96511.0,96510.0,0.00067364]
[1763119188308,0.37301275,96511.0,96510.0,0.00067364]
[1763119188998,0.22734567,96511.0,96510.0,0.00067364]
[1763119189819,0.20823026,96511.0,96510.0,0.01867364]
[1763119190054,0.19823026,96511.0,96510.0,0.03470364]
[1763119190309,0.01035947,96530.0,96511.0,0.02296]
[1763119190544,0.20720879,96521.0,96520.0,0.018]
[1763119190771,0.53020879,96521.0,96520.0,0.018]
[1763119190987,0.20720879,96521.0,96520.0,0.018]
[1763119191211,0.53020879,96521.0,96520.0,0.018]
[1763119191415,0.20720879,96521.0,96520.0,0.018]
[1763119191628,0.20720879,96522.0,96520.0,0.018]
[1763119191828,0.323,96521.0,96520.0,0.018]
[1763119192048,0.20720879,96522.0,96521.0,0.01249]
[1763119192275,0.323,96521.0,96520.0,0.018]
[1763119192718,0.323,96521.0,96516.0,0.01249]
[1763119192719,0.20721738,96517.0,96516.0,0.01249]
[1763119195114,0.20721738,96517.0,96516.0,0.03545]
[1763119195928,0.53021738,96517.0,96516.0,0.01249]
[1763119196328,0.53021738,96517.0,96516.0,0.01298172]
[1763119197206,0.53021738,96517.0,96516.0,0.00049172]
[1763119197403,0.66074603,96517.0,96516.0,0.00049172]
[1763119197649,0.53799738,96517.0,96516.0,0.00049172]
[1763119197864,0.55707643,96517.0,96516.0,0.00049172]
[1763119198286,0.53021738,96517.0,96516.0,0.00049172]
[1763119198865,0.53799738,96517.0,96516.0,0.00049172]
[1763119199050,0.55707326,96517.0,96516.0,0.00049172]
[1763119199712,0.54929326,96517.0,96516.0,0.00049172]
[1763119200621,0.54929326,96517.0,96516.0,0.02371172]
[1763119200622,0.53021738,96517.0,96516.0,0.02371172]
[1763119202779,0.53021738,96517.0,96516.0,0.00049172]
[1763119203979,0.20721123,96520.0,96516.0,0.00049172]
[1763119204213,0.20766254,96523.0,96513.0,0.01249]
[1763119204214,0.00045645,96523.0,96513.0,0.01249]
[1763119204459,0.02753463,96557.0,96513.0,0.01249]
[1763119204460,0.09294592,96559.0,96522.0,0.01543]
[1763119204662,0.20714441,96551.0,96550.0,0.018]
[1763119204912,0.5492285,96551.0,96550.0,0.018]
[1763119205070,0.5301487,96549.0,96548.0,0.012]
[1763119205280,9.928e-05,96559.0,96548.0,0.012]
[1763119205488,0.20714655,96550.0,96549.0,0.02322]
[1763119205835,0.20713153,96557.0,96549.0,0.02322]
[1763119206037,0.001,96551.0,96550.0,0.04223743]
[1763119206242,0.001,96551.0,96550.0,0.018]
[1763119206813,0.20814448,96551.0,96548.0,0.012]
[1763119206997,0.001,96551.0,96548.0,0.012]
[1763119207198,0.001,96551.0,96549.0,0.02322]
[1763119207388,0.20714523,96551.0,96549.0,0.02322]
[1763119207579,9.928e-05,96559.0,96558.0,0.015]
[1763119207990,9.928e-05,96559.0,96548.0,0.012]
[1763119207991,9.928e-05,96559.0,96557.0,0.2071301]
[1763119208337,9.928e-05,96559.0,96558.0,0.14102893]
[1763119208537,9.928e-05,96559.0,96558.0,0.14907893]
[1763119208741,9.928e-05,96559.0,96558.0,0.12602893]
[1763119209183,9.928e-05,96559.0,96558.0,0.10531592]
[1763119210060,9.928e-05,96559.0,96558.0,0.10631592]
[1763119210221,9.928e-05,96559.0,96558.0,0.10531592]
[1763119210880,9.928e-05,96559.0,96558.0,0.10631592]
[1763119211370,9.928e-05,96559.0,96558.0,0.10531592]
[1763119211630,9.928e-05,96559.0,96558.0,0.15135108]
[1763119211792,9.928e-05,96559.0,96558.0,0.15335108]
[1763119211953,9.928e-05,96559.0,96558.0,0.15239108]
[1763119212157,9.928e-05,96559.0,96558.0,0.15139108]
[1763119212373,9.928e-05,96559.0,96558.0,0.15339108]
[1763119212573,9.928e-05,96559.0,96558.0,0.19780982]
[1763119212780,0.01035089,96610.0,96590.0,0.018]
[1763119213137,0.00024562,96600.0,96599.0,0.015]
[1763119213255,0.00024562,96600.0,96599.0,0.02583759]
[1763119213463,0.00024562,96600.0,96599.0,0.01083759]
[1763119214576,0.00024562,96600.0,96569.0,0.04341874]
[1763119214577,0.00024562,96600.0,96586.0,0.01237]
[1763119214783,0.00024562,96600.0,96599.0,0.015]
[1763119214990,0.00024562,96600.0,96586.0,0.01237]
[1763119214991,0.20706113,96590.0,96586.0,0.01237]
[1763119215194,0.20705105,96595.0,96588.0,0.09294592]
[1763119215532,0.20705105,96595.0,96586.0,0.01237]
[1763119215533,0.2070672,96587.0,96586.0,0.01237]
[1763119215950,0.2070672,96587.0,96586.0,0.03542]
[1763119216396,0.2070672,96587.0,96586.0,0.01337]
[1763119216612,0.323,96598.0,96586.0,0.01337]
[1763119216613,0.20704703,96597.0,96595.0,0.02737]
[1763119216821,0.00024562,96600.0,96595.0,0.10531592]
[1763119217043,0.00024562,96600.0,96596.0,0.02305]
[1763119217044,0.323,96597.0,96596.0,0.02305]
[1763119217257,0.2070672,96587.0,96586.0,0.01237]
[1763119217463,0.5300672,96587.0,96586.0,0.01237]
[1763119217674,0.20706508,96588.0,96569.0,0.02305]
[1763119217675,0.2070865,96578.0,96569.0,0.02305]
[1763119218098,0.5300865,96578.0,96569.0,0.02305]
[1763119218310,0.53010365,96570.0,96569.0,0.02305]
[1763119218762,0.20710153,96571.0,96560.0,0.01237]
[1763119218763,0.53012295,96561.0,96560.0,0.01237]
[1763119218947,0.53012295,96561.0,96560.0,0.03037]
[1763119219401,0.53012295,96561.0,96560.0,0.05342]
[1763119219801,0.53012295,96561.0,96560.0,0.03037]
[1763119220647,0.53012295,96561.0,96560.0,0.01237]
[1763119221037,0.53012295,96561.0,96560.0,0.02269125]
[1763119221272,0.53012724,96559.0,96558.0,4e-05]
[1763119221485,0.53836724,96559.0,96558.0,4e-05]
[1763119223472,0.53936724,96559.0,96558.0,4e-05]
[1763119223867,0.58278598,96559.0,96558.0,4e-05]
[1763119224068,0.58278598,96559.0,96550.0,4e-05]
[1763119224069,0.57356315,96551.0,96550.0,4e-05]
[1763119224336,0.57356315,96551.0,96516.0,8e-05]
[1763119224337,0.53021738,96517.0,96516.0,8e-05]
[1763119224509,0.53845738,96517.0,96516.0,0.00017928]
[1763119225039,0.53021738,96517.0,96516.0,0.00017928]
[1763119225562,0.53121738,96517.0,96516.0,0.00017928]
[1763119225767,0.53021738,96517.0,96516.0,0.00017928]
[1763119227914,0.44607096,96517.0,96516.0,0.00017928]
[1763119228319,0.53226977,96517.0,96516.0,0.00017928]
[1763119228518,0.4977297,96517.0,96516.0,0.00017928]
[1763119229222,0.51672702,96517.0,96516.0,0.00017928]
[1763119229442,0.4977297,96517.0,96516.0,0.00017928]
[1763119230052,0.4977297,96517.0,96516.0,0.00111933]
[1763119230714,0.51138082,96517.0,96516.0,0.00111933]
[1763119230944,0.51138082,96517.0,96516.0,1e-08]
[1763119232405,0.51138082,96517.0,96500.0,6.47260475]
[1763119232406,0.57367047,96501.0,96500.0,6.47260475]
[1763119232651,0.6749555,96501.0,96500.0,6.47260475]
[1763119233332,0.77862488,96501.0,96500.0,6.47260475]
[1763119234172,1.02312488,96501.0,96500.0,6.47260475]
[1763119234685,0.77485084,96501.0,96500.0,6.47260475]
[1763119234901,0.78309084,96501.0,96500.0,6.47260475]
[1763119235543,0.78409084,96501.0,96500.0,6.47260475]
[1763119235753,0.78509084,96501.0,96500.0,6.47260475]
[1763119235967,0.78409084,96501.0,96500.0,6.47260475]
[1763119236177,0.93117896,96501.0,96500.0,6.47260475]
[1763119236384,0.93017896,96501.0,96500.0,6.47260475]